[Event "67th Mexican-ch Open 2022"]
[Site "Chihuahua"]
[Date "2022.04.17"]
[Round "8.26"]
[White "Real Pereyra, Diana Carime"]
[Black "Guerrero Rodriguez, Alejandra"]
[Result "0-1"]
[ECO "B70"]
[WhiteElo "2049"]
[BlackElo "2019"]
[Annotator "TA"]
[PlyCount "132"]
[EventDate "2022.04.12"]
[EventType "swiss"]
[EventCountry "MEX"]
[SourceTitle "playchess.com"]
[Source "ChessBase"]
[SourceQuality "1"]
[TimeControl "5400+30"]

{[%evp 16,132,-1,-10,-15,-20,0,0,0,0,0,0,0,0,0,0,16,-18,-31,-19,12,0,0,0,0,0,-5,-5,0,0,21,28,22,10,14,0,0,0,0,0,0,0,0,0,0,0,0,0,0,0,0,-10,-6,-4,-10,-45,-39,-63,-46,-91,-80,-107,-61,-67,-60,-61,-60,-61,-72,-150,-143,-157,-145,-158,0,-158,-104,-309,-308,-376,-351,-285,-270,-605,-211,-631,-241,-610,-595,-1147,-1067,-1829,-1558,-29957,-29962,-29968,-29970,-10237,-9707,-29973,-29974,-29977,-29978,-29979,-29980,-29986,-29987,-29989,-29985,-29985,-29981,-29985,-29984,-29983,-29984,-29984,-29983,-29983,-29984]} 1. e4 {[%emt 0:00:07]} c5 {[%emt 0:00:22]} 2. Nf3 {[%emt 0:00:05]} d6 {[%emt 0:00:35]} 3. d4 {[%emt 0:00:24]} cxd4 {[%emt 0:00:37]} 4. Nxd4 {[%emt 0:00:13]} Nf6 {[%emt 0:00:08]} 5. Nc3 {[%emt 0:00:08]} g6 {[%emt 0:01:25]} 6. Bc4 {[%emt 0:01:12]} Bg7 {[%emt 0:00:08]} 7. h3 {[%emt 0:00:42]} O-O {[%emt 0:01:32]} 8. O-O {[%emt 0:00:07] has lost popularity (8.Bb3).} Nc6 {[%emt 0:00:50]} 9. Nf3 {[%emt 0:00:16] 9.Re1 is becoming the main line.} Na5 {[%emt 0:01:47] B70: Sicilian Dragon: 6 g3 and 6 Be2 (without a later Be3).} 10. Bb3 {[%emt 0:00:47]} Nxb3 {[%emt 0:01:33]} (10... b5 {is interesting.} 11. e5 dxe5 12. Nxe5 Ba6) 11. axb3 {[%emt 0:00:05]} b6 {[%emt 0:02:03] [#] The position is equal.} 12. Qe2 $146 {[%emt 0:05:20]} ({Predecessor:} 12. Re1 Bb7 13. Nd5 Nxd5 14. exd5 Qd7 15. c4 a6 16. Nd4 Rae8 17. Be3 e6 18. dxe6 fxe6 {½-½ (67) Needleman,A (2420)-Alonso,S (2444) Buenos Aires 2004}) 12... Bb7 {[%emt 0:04:14]} 13. Rd1 {[%emt 0:00:13]} Qc7 {[%emt 0:02:39]} 14. Nd5 {[%emt 0:08:24]} Nxd5 {[%emt 0:02:27]} 15. exd5 {[%emt 0:00:07]} Rfe8 {[%emt 0:00:07]} 16. Qd3 {[%emt 0:05:06]} e6 {[%emt 0:04:56]} 17. dxe6 {[%emt 0:03:04]} Rxe6 {[%emt 0:00:08]} (17... fxe6 $5 {[%cal Rd6d5]} 18. c3 d5 $15) 18. c3 {[%emt 0:01:07]} (18. Nd4 {feels hotter.} Bxd4 19. Qxd4 Qc6 20. f3) 18... Be4 {[%emt 0:01:05] A strong pair of Bishops.} 19. Qc4 {[%emt 0:07:49]} Qxc4 {[%emt 0:07:41]} 20. bxc4 {[%emt 0:00:08]} Bc2 {[%emt 0:00:33]} 21. Rd5 {[%emt 0:01:52]} Be4 {[%emt 0:03:29]} 22. Rd1 {[%emt 0:00:20]} Bxf3 {[%emt 0:00:08]} (22... Bc2 $5 {[%cal Rc2d1]} 23. Rd5 Be4 $11) 23. gxf3 {[%emt 0:00:01]} Rae8 {[%emt 0:05:56]} 24. Be3 {[%emt 0:08:49]} R8e7 {[%emt 0:02:36]} 25. Ra2 {[%emt 0:06:19] Strongly threatening Rda1.} Rc7 {[%emt 0:01:17]} 26. Rd3 {[%emt 0:01:50]} f5 {[%emt 0:01:58]} 27. b3 {[%emt 0:10:20]} Be5 {[%emt 0:02:15]} 28. Rad2 {[%emt 0:05:31]} g5 {[%emt 0:04:29]} 29. Kf1 {[%emt 0:05:40]} h6 {[%emt 0:04:19]} (29... f4 $5 30. Bd4 Kf7 $11) 30. Rd1 {[%emt 0:04:42]} Kf7 {[%emt 0:00:34]} 31. Bd4 {[%emt 0:05:15]} Bxd4 {[%emt 0:03:55]} 32. Rxd4 $11 {[%emt 0:00:58][%mdl 4096] Endgame KRR-KRR} Ke7 {[%emt 0:00:08]} 33. Rd5 {[%emt 0:00:53]} Rc5 {[%emt 0:00:07]} 34. Ra1 {[%emt 0:03:01]} a5 {[%emt 0:00:26]} 35. Rad1 {[%emt 0:01:36]} Rxd5 {[%emt 0:02:55]} 36. Rxd5 $15 {[%emt 0:00:29] KR-KR} Re5 $1 {[%emt 0:00:40] ...Rxd5 is the strong threat.} 37. Rd3 {[%emt 0:07:02]} Ke6 {[%emt 0:02:08]} 38. Rd1 {[%emt 0:03:04]} b5 {[%emt 0:03:33]} (38... Rc5 $17 {[%cal Oa5a4]} 39. Ra1 d5 40. cxd5+ Kxd5 41. Rd1+ Kc6) 39. cxb5 {[%emt 0:01:18]} Rxb5 {[%emt 0:00:02]} 40. Re1+ {[%emt 0:01:33]} Kf6 {[%emt 0:00:15]} 41. Rb1 {[%emt 0:00:09]} Ke5 {[%emt 0:04:12]} 42. Kg2 {[%emt 0:03:08]} (42. c4 $142 Rb6 43. Kg2) 42... d5 $1 $17 {[%emt 0:00:46]} 43. Kf1 {[%emt 0:00:33]} Kf4 {[%emt 0:04:20]} 44. Kg2 {[%emt 0:00:47]} Ke5 {[%emt 0:02:43]} ({Not} 44... a4 45. b4 $17) 45. Kf1 $1 {[%emt 0:00:11] [#]} d4 (45... Rc5 $142 $1 {[%cal Rc5c3]} 46. Rc1 Rb5 47. Rb1) 46. c4 {[%emt 0:00:30] [#] This costs White the game.} (46. Re1+ $17 Kf4 47. cxd4) 46... Rb4 $1 $19 {Hoping for ...d3.} 47. Ra1 {[%emt 0:00:30]} Rxb3 48. Rxa5+ {[%emt 0:00:30]} Kf4 49. Ke2 {[%emt 0:00:30]} (49. Rd5) 49... Rc3 $2 (49... Rxf3 50. Rd5 Ke4) 50. Rc5 $2 {[%emt 0:00:30]} (50. c5) 50... h5 $2 (50... Rxf3 51. Rd5 Ke4) 51. Rc8 $2 {[%emt 0:00:30]} (51. Rd5 Rxc4 52. Kf1) 51... Rxf3 52. c5 {[%emt 0:00:30]} Rxh3 53. c6 {[%emt 0:00:30]} Rc3 54. c7 {[%emt 0:00:30]} h4 {[%cal Bh5h4,Bh4h3][%mdl 32]} 55. Rd8 {[%emt 0:00:30]} Rxc7 56. Rxd4+ {[%emt 0:00:30]} Ke5 57. Rd1 {[%emt 0:00:30]} g4 {Black mates.} 58. Rd8 {[%emt 0:00:30]} h3 59. Rh8 {[%emt 0:00:30]} Rc2+ 60. Kf1 {[%emt 0:00:30]} Kf4 61. Kg1 {[%emt 0:00:30]} Kf3 62. Ra8 {[%emt 0:00:30]} h2+ 63. Kxh2 {[%emt 0:00:30]} g3+ 64. Kh3 {[%emt 0:00:30]} gxf2 65. Ra1 {[%emt 0:00:30]} Ke2 66. Kg2 {[%emt 0:00:30]} f4 {Weighted Error Value: White=0.80/Black=0.24 (precise)} 0-1

[Event "67th Mexican-ch Open 2022"]
[Site "Chihuahua"]
[Date "2022.04.17"]
[Round "8.27"]
[White "Corrales Jimenez, Zenia"]
[Black "Ortega Beltran, Ximena"]
[Result "1/2-1/2"]
[ECO "B35"]
[WhiteElo "2151"]
[BlackElo "1725"]
[Annotator "TA"]
[PlyCount "72"]
[EventDate "2022.04.12"]
[EventType "swiss"]
[EventCountry "MEX"]
[SourceTitle "playchess.com"]
[Source "ChessBase"]
[SourceQuality "1"]
[TimeControl "5400+30"]

{[%evp 13,72,11,52,48,52,41,61,48,57,69,60,63,51,52,55,50,50,50,96,94,96,86,136,102,203,108,105,81,75,8,9,11,29,-7,-29,-8,22,0,39,19,21,22,26,23,21,16,40,0,8,0,0,0,0,-14,0,0,0,-4,0,0,41]} 1. e4 {[%emt 0:01:07]} c5 {[%emt 0:00:29]} 2. Nf3 {[%emt 0:00:22]} g6 {[%emt 0:00:33]} 3. d4 {[%emt 0:00:26]} cxd4 {[%emt 0:00:30]} 4. Nxd4 {[%emt 0:00:13]} Nf6 {[%emt 0:00:45]} 5. Nc3 {[%emt 0:01:41]} Nc6 {[%emt 0:00:12]} 6. Be3 {[%emt 0:01:09]} Bg7 {[%emt 0:00:13]} 7. Bc4 {[%emt 0:00:42]} Ng4 {[%emt 0:13:28]} 8. Qxg4 {[%emt 0:06:45] B35: Sicilian: Accelerated Dragon with 5 Nc3: main line.} Nxd4 {[%emt 0:09:21]} 9. Qd1 {[%emt 0:00:31]} Nc6 {[%emt 0:04:12]} 10. Qd2 {[%emt 0:04:30] 0x0.00299f40aea5dp-1022s more active pieces. The black rooks are badly placed. White is slightly better.} O-O {[%emt 0:05:19]} 11. h4 $40 {[%emt 0:12:05][%mdl 128] White has some attack.} h5 {[%emt 0:00:30]} 12. Bh6 {[%emt 0:05:06] [#]} Qb6 $146 {[%emt 0:03:49]} ({Predecessor:} 12... d6 13. f3 Ne5 14. Bb3 Bd7 15. O-O-O b5 16. Bxg7 Kxg7 17. f4 Ng4 18. e5 Bc6 19. exd6 Qxd6 20. Qxd6 exd6 21. Rxd6 Bxg2 {0-1 (84) Della Morte,P (2147)-Alvarez Castillo,H (2175) Ezeiza 2000}) 13. Bxg7 {[%emt 0:02:29]} Kxg7 {[%emt 0:00:26]} 14. O-O-O {[%emt 0:00:23][%cal Og2g4] Threatens to win with g4!} d6 $1 {[%emt 0:03:47]} 15. f4 {[%emt 0:05:47][%cal Of4f5]} Qc5 {[%emt 0:14:12] Against f5} (15... Bg4 $14) 16. Be2 $16 {[%emt 0:04:57][%cal Of4f5]} f5 {[%emt 0:05:02]} 17. g3 {[%emt 0:16:57]} a6 {[%emt 0:18:22]} (17... fxe4 $142 18. Nxe4 Qb6) 18. Bf3 {[%emt 0:06:44]} b5 {[%emt 0:04:55] [#]} (18... e5 $16 {was worth a try.}) 19. exf5 {[%emt 0:07:11]} (19. Rhe1 $1 $18) 19... Bxf5 {[%emt 0:02:22]} 20. Ne4 {[%emt 0:00:06]} Qc4 {[%emt 0:03:59]} 21. Qc3+ {[%emt 0:06:54]} (21. Ng5 $16) 21... Qxc3 $11 {[%emt 0:00:06]} 22. Nxc3 {[%emt 0:00:01]} Rac8 {[%emt 0:00:04]} 23. Be4 {[%emt 0:01:28]} b4 {[%emt 0:02:19]} 24. Bxf5 {[%emt 0:00:05]} Rxf5 {[%emt 0:00:02]} 25. Ne4 {[%emt 0:00:45]} Na5 {[%emt 0:03:54]} 26. Kb1 {[%emt 0:03:26]} (26. Ng5 {seems wilder.} Rb5 27. Rhe1 Nc6 28. Re4) 26... Nb7 {[%emt 0:00:05]} 27. Rhe1 {[%emt 0:00:13]} Rc7 {[%emt 0:00:18]} 28. Re2 {[%emt 0:01:19]} Nc5 {[%emt 0:00:24]} 29. Ng5 {[%emt 0:00:19]} Kf6 {[%emt 0:00:55]} 30. Rde1 {[%emt 0:00:52]} e5 {[%emt 0:01:11] The position is equal.} 31. Rd2 {[%emt 0:02:54]} Rc6 32. Rf2 {[%emt 0:00:30]} exf4 33. gxf4 {[%emt 0:00:30]} d5 34. Re8 {[%emt 0:00:30]} Ne6 {[%cal Re6g5]} 35. Kc1 {[%emt 0:00:30]} Nc5 {[#] Hoping for ...Nd3+.} 36. Kd2 {[%emt 0:00:30] Prevents Nd3.} Kg7 {Weighted Error Value: White=0.16 (very precise) /Black=0.12 (very precise)} 1/2-1/2